Cogmind - Beta 16 @@@ ROGUE MODE // 2026.01.31 @ 22:15:00 Player: mlys Result: Destroyed by G-34 Mercenary with Small Laser Performance ------------- Evolutions (1) 500 Regions Visited (3) 600 Robots Destroyed (20) 100 Value Destroyed (387) 387 Prototype IDs (0) 0 Alien Tech Used (0) 0 Bonus (0) 0 TOTAL SCORE: 1587 Bonus ------- None Cogmind --------- Core Integrity 0/400 Matter 290/300 Energy 98/100 System Corruption 0% Temperature Cool (6) Movement Core (150) Ox2 Location -9/Materials Parts ------- > --- POWER (1) -------- (None) > --- PROPULSION (3) --- (None) > --- UTILITY (3) ------ Heat Sink Small Storage Unit Visual Processing Unit > --- WEAPON (2) ------- Ripper > --- INVENTORY (8) ---- Ion Engine Medium Matter Pod (59) Medium Laser Light Cannon Peak State ------------ > --- POWER ------------ Light Nuclear Core > --- PROPULSION ------- Aluminum Leg > --- UTILITY ---------- Heat Sink Small Storage Unit Visual Processing Unit > --- WEAPON ----------- Ripper > --- INVENTORY -------- Ion Engine Medium Matter Pod Medium Laser Light Cannon [Rating: 12] Favorites ----------- Power Ion Engine Engine Ion Engine Power Core Light Nuclear Core Propulsion Light Treads Treads Light Treads Leg Aluminum Leg Flight Unit Flight Unit Utility Small Storage Unit Device Heat Sink Storage Small Storage Unit Processor Visual Processing Unit Weapon Assault Rifle Energy Gun Medium Laser Ballistic Gun Assault Rifle Ballistic Cannon Light Cannon Launcher Grenade Launcher Slashing Weapon Ripper Build | -11 -10 -10 -9 ------- Run | Yrd Mat Min Mat Slots Evolved 2 | . . . 2 Power . | . . . . Propulsion 1 | . . . 1 Utility 1 | . . . 1 Weapon . | . . . . Parts Attached 25 | 6 4 2 13 Power 6 | 1 1 . 4 Engine 5 | 1 1 . 3 Core 1 | . . . 1 Reactor . | . . . . Propulsion 9 | 2 . . 7 Treads 2 | 2 . . . Leg 3 | . . . 3 Wheel . | . . . . Hover . | . . . . Flight 4 | . . . 4 Utility 4 | 1 2 . 1 Device 1 | . . . 1 Storage 2 | 1 1 . . Processor 1 | . 1 . . Hackware . | . . . . Protection . | . . . . Artifact . | . . . . Weapon 6 | 2 1 2 1 Energy Gun 1 | 1 . . . Energy Cannon . | . . . . Ballistic Gun 1 | 1 . . . Ballistic Cannon 2 | . 1 . 1 Launcher 1 | . . 1 . Special Weapon . | . . . . Impact Weapon . | . . . . Slashing Weapon 1 | . . 1 . Piercing Weapon . | . . . . Special Melee Weapon . | . . . . Unidentified Prototypes . | . . . . Parts Lost 14 | . . 3 11 Power 5 | . . 1 4 Propulsion 6 | . . 1 5 Utility . | . . . . Weapon 3 | . . 1 2 Highest Loss Streak 6 | . . 3 6 To Critical Strikes . | . . . . Average Backups 5 | 1 5 7 5 Power 1 | . 1 1 . Propulsion 1 | 1 2 2 . Utility . | . . 1 1 Weapon 2 | . 1 3 3 Tool/Special . | . . . . Unused Backups . | . . . . Power . | . . . . Propulsion . | . . . . Utility . | . . . . Weapon . | . . . . Tool/Special . | . . . . Average Slot Usage (%) 79 | . 96 82 63 Engine 12 | . 14 14 10 Treads 13 | . 28 17 . Leg 4 | . . . 9 Flight 2 | . . . 5 Storage 16 | . 24 14 11 Processor 8 | . 1 14 11 Energy Gun 2 | . 2 5 . Ballistic Gun 7 | . 13 9 . Ballistic Cannon 5 | . 11 . 3 Slashing Weapon 5 | . . 4 10 Peak Build Rating 12 | 6 8 9 12 Average Rating 8 | 4 6 8 9 On Entrance 5 | . 6 8 9 Avg Prop Armor Cover (%) . | . . . . Naked Turns . | . . . . Heaviest Build 17 | 14 17 14 16 Greatest Support 40 | 40 40 40 20 Greatest Overweight (x) 5 | . . . 5 Average Overweight (x) . | . . . . Largest Inventory Capacity 8 | 8 8 8 8 Average Capacity 7 | 6 8 8 8 Most Carried 8 | 3 7 8 8 Average Carried 5 | 1 5 7 5 Final Capacity 8 | 8 8 8 8 Final Carried 8 | 3 7 8 4 Class Distribution -------------------- 92% | Mutant 7% | Scavenger-Mutant Dominant Class ---------------- Mutant | -10/Materials Mutant | -10/Mines Mutant | -9/Materials Resources | -11 -10 -10 -9 ----------- Run | Yrd Mat Min Mat Matter Collected 637 | 40 101 31 465 Remotely . | . . . . Salvage Created 609 | . 92 25 492 Parts 37 | . 7 4 26 Haulers Intercepted . | . . . . Recyclers Shooed . | . . . . Parts Field Recycled . | . . . . Retrieved Matter . | . . . . Parts Self-Destructed . | . . . . Prevented . | . . . . Parts Restored . | . . . . Kills | -11 -10 -10 -9 ------- Run | Yrd Mat Min Mat Combat Hostiles Destroyed 16 | . 2 3 11 Melee 10 | . . 2 8 Guns 3 | . 1 1 1 Cannons 3 | . 1 . 2 Classes Destroyed 5 | . 2 1 2 Recycler 3 | . . . 3 Watcher 1 | . 1 . . Swarmer 8 | . . 2 6 Grunt 6 | . 2 . 4 Sentry 1 | . . . 1 Best Kill Streak 4 | . 1 2 4 Combat Bots Only 4 | . 1 2 4 Max Kills in Single Turn 1 | . 1 1 1 Gunslinging . | . . . . Exploded . | . . . . Melee 1 | . . 1 1 Uniques/NPCs Destroyed 1 | . . 1 . YI-UF0 (-10/Mines) Combat | -11 -10 -10 -9 -------- Run | Yrd Mat Min Mat Hostile Shots Fired 173 | . 8 29 136 Missed 37 | . 3 5 29 Hits 136 | . 5 24 107 Projectile 136 | . 5 24 107 AOE 15 | . . 15 . Critical Strikes 1 | . . . 1 Damage Taken 1762 | . 70 596 1096 Core 540 | . 12 127 401 Absorbed by Shields . | . . . . Core Remaining (%) 72 | 100 . 44 . Volleys Fired 27 | . 7 5 15 Largest 2 | . 2 2 1 Hottest 70 | . 50 70 30 Shots Fired 38 | . 14 9 15 Gun 19 | . 7 6 6 Cannon 16 | . 7 . 9 Launcher 3 | . . 3 . Special . | . . . . Kinetic 34 | . 14 5 15 Thermal 1 | . . 1 . Explosive 3 | . . 3 . Electromagnetic . | . . . . Robot Hit Streak 5 | . 5 3 5 Robot Miss Streak 3 | . 3 3 2 Penetration Max . | . . . . Secondary Targets . | . . . . Shots Hit Robots 42 | . 7 6 29 Core Hits 23 | . 5 5 13 Critical Kills . | . . . . Critical Parts Destroyed . | . . . . Critical Strikes 4 | . . 1 3 Burn 1 | . . 1 . Sever 3 | . . . 3 Melee Attacks 29 | . . 4 25 Impact . | . . . . Slashing 29 | . . 4 25 Piercing . | . . . . Sneak Attacks . | . . . . Combat Hostiles . | . . . . Follow-up Attacks . | . . . . Damage Inflicted 1103 | . 102 156 845 Guns 108 | . 34 25 49 Cannons 200 | . 68 . 132 Explosions 22 | . . 22 . Melee 773 | . . 109 664 Ramming . | . . . . Kinetic 295 | . 102 12 181 Thermal 13 | . . 13 . Explosive 22 | . . 22 . Electromagnetic . | . . . . Impact . | . . . . Slashing 773 | . . 109 664 Piercing . | . . . . Highest Corruption . | . . . . Average Corruption . | . . . . Corruption Purged . | . . . . Corruption Blocked . | . . . . Overload Shots . | . . . . Overflow Damage 46 | . . 22 24 Projectiles . | . . . . Explosions 21 | . . 21 . Melee 25 | . . 1 24 Knockbacks 1 | . 1 . . Impact . | . . . . Kinetic 1 | . 1 . . Secondary . | . . . . Self-Inflicted Damage 91 | . . 91 . Shots 3 | . . 3 . Rammed . | . . . . Targets Rammed . | . . . . Kicked . | . . . . Crushed . | . . . . Highest Temperature 9 | . 6 9 1 Average Temperature 3 | . 3 6 1 Received Heat Transfer 450 | . 39 . 411 Siege Activations . | . . . . Martial Activations . | . . . . Shielding Activations . | . . . . Robots Disrupted . | . . . . Combat Hostiles . | . . . . Robots Corrupted . | . . . . Combat Hostiles . | . . . . Parts Fried . | . . . . Impact Corruptions . | . . . . Robots Melted . | . . . . Combat Hostiles . | . . . . Parts Melted . | . . . . Heat Transferred 111 | . . 111 . Parts Sabotaged . | . . . . Parts Stolen . | . . . . Parts Stripped . | . . . . Power Chain Reactions . | . . . . Alert | -11 -10 -10 -9 ------- Run | Yrd Mat Min Mat Maximum Alert Level . | . . . . Low Security (%) 100 | 100 100 100 100 Level 1 . | . . . . Level 2 . | . . . . Level 3 . | . . . . Level 4 . | . . . . Level 5 . | . . . . High Security . | . . . . Max Security . | . . . . Peak Influence 160 | . 35 40 160 Initial 7 | . . 7 . Average 27 | . 7 7 60 Influence Increases 573 | . 111 52 410 Destroy 0b10 Robot/C 300 | . 40 40 220 Destroy 0b10 Robot/NC 20 | . 5 . 15 Destroy Leader 62 | . 12 10 40 Successful Hack 9 | . 9 . . Disable Machine 15 | . 15 . . Destroy Structure 2 | . . 2 . Lose Combat Pursuer 165 | . 30 . 135 Influence Decreases 451 | . 92 71 288 Entered New Map 12 | . . 12 . Time Decay 329 | . 92 59 178 Lost Part 110 | . . . 110 Squads Dispatched 2 | . . . 2 Investigation 1 | . . . 1 Extermination . | . . . . Reinforcement 1 | . . . 1 Assault . | . . . . Garrison . | . . . . Intercept . | . . . . Searches Triggered . | . . . . Construction Impeded . | . . . . Haulers Reinforced . | . . . . Active Scanning Responses . | . . . . Cargo Convoy Interrupts . | . . . . Stealth | -11 -10 -10 -9 --------- Run | Yrd Mat Min Mat Distress Signals 4 | . 2 . 2 Communications Jammed . | . . . . Distress Signals . | . . . . Times Spotted 41 | . 6 10 25 Peak Tracking Total 5 | . 3 3 5 Tactical Retreats 9 | . 2 . 7 Traps | -11 -10 -10 -9 ------- Run | Yrd Mat Min Mat Traps Triggered . | . . . . Indirectly . | . . . . Trap Hack Attempts . | . . . . Triggered . | . . . . Disarmed . | . . . . Reprogrammed 12 | . 6 . 6 Reused . | . . . . Traps Extracted . | . . . . Installed . | . . . . Triggered . | . . . . Machines | -11 -10 -10 -9 ---------- Run | Yrd Mat Min Mat Machines Disabled 1 | . 1 . . Max in Single Turn 1 | . 1 . . Machines Repaired . | . . . . Machines Dismantled . | . . . . Machines Sabotaged . | . . . . Overloaded Fab Kills . | . . . . Hacking | -11 -10 -10 -9 --------- Run | Yrd Mat Min Mat Machines Accessed 5 | . 2 . 3 Terminals 3 | . 2 . 1 Fabricators . | . . . . Repair Stations . | . . . . Recycling Units 1 | . . . 1 Scanalyzers 1 | . . . 1 Garrison Access . | . . . . Total Hacks 16 | . 5 . 11 Successful 9 | . 3 . 6 Failed 7 | . 2 . 5 Catastrophic 1 | . . . 1 Database Lockouts . | . . . . Manual . | . . . . Terminals 9 | . 5 . 4 Fabricators . | . . . . Repair Stations . | . . . . Recycling Units 3 | . . . 3 Scanalyzers 4 | . . . 4 Garrison Access . | . . . . Terminal Hacks 5 | . 3 . 2 Locate Traps 1 | . . . 1 Reprogram Traps 2 | . 1 . 1 Dispatch Records 1 | . 1 . . Transport Status 1 | . 1 . . Fabricator Hacks . | . . . . Repair Station Hacks . | . . . . Recycling Unit Hacks 1 | . . . 1 Retrieve Matter 1 | . . . 1 Scanalyzer 3 | . . . 3 Insert Component 2 | . . . 2 Analyze 1 | . . . 1 Garrison Access Hacks . | . . . . Unauthorized Hacks . | . . . . Terminals . | . . . . Fabricators . | . . . . Repair Stations . | . . . . Recycling Units . | . . . . Scanalyzers . | . . . . Garrison Access . | . . . . Data Cores Recovered . | . . . . Used . | . . . . Hacking Detections 3 | . . . 3 Full Trace Events 2 | . . . 2 Feedback Events . | . . . . Feedback Blocked . | . . . . Robot Schematics Acquired . | . . . . Robots Built . | . . . . Authchips . | . . . . Time . | . . . . Total Robot Build Rating . | . . . . Part Schematics Acquired . | . . . . Parts Built . | . . . . Authchips . | . . . . Time . | . . . . Total Part Build Rating . | . . . . Part Studies Acquired . | . . . . Parts Repaired . | . . . . Time . | . . . . Parts Recycled . | . . . . Recycled Matter . | . . . . Retrieved Matter . | . . . . Retrieved Components . | . . . . Parts Scanalyzed 1 | . . . 1 Part Schematics Acquired . | . . . . Parts Damaged . | . . . . Bothacking | -11 -10 -10 -9 ------------ Run | Yrd Mat Min Mat Used RIF Installer . | . . . . Robots Hacked . | . . . . Non-combat . | . . . . Combat . | . . . . Robot Hacks Applied . | . . . . Relay Couplers Released . | . . . . Fabnet Peak Effective % . | . . . . Robots Rewired . | . . . . Allies Hacked . | . . . . Hacks Repelled . | . . . . Allies | -11 -10 -10 -9 -------- Run | Yrd Mat Min Mat Total Allies . | . . . . Largest Group . | . . . . Highest-Rated Group . | . . . . Highest-Rated Ally . | . . . . Total Orders . | . . . . Ally Attacks . | . . . . Total Damage . | . . . . Kills . | . . . . Allies Corrupted . | . . . . Allies Melted . | . . . . Intel | -11 -10 -10 -9 ------- Run | Yrd Mat Min Mat Active Infowar (turns) 841 | . 35 303 503 Optics 841 | . 35 303 503 Robot Analysis Total . | . . . . Derelict Logs Recovered . | . . . . Drone Launches . | . . . . Drone Recoveries . | . . . . Exploration | -11 -10 -10 -9 ------------- Run | Yrd Mat Min Mat Turns Passed 1320 | 98 416 303 503 Spaces Moved 742 | 63 219 169 291 Core 28 | 13 . . 15 Treads 438 | 50 219 169 . Legs 145 | . . . 145 Wheels . | . . . . Hover . | . . . . Flight 131 | . . . 131 Fastest Speed 34 | 50 160 160 34 Average Speed 139 | 137 160 160 112 Slowest Speed 300 | 160 160 160 300 Overloaded Moves . | . . . . Propulsion Burnouts . | . . . . Robots Hopped . | . . . . Potential Cave-ins 4 | . . 4 . Cave-ins Triggered . | . . . . Exploration Rate (%) 22 | 5 26 42 17 Regions Visited 3 Branch Regions 1 Pre-discovered Areas . | . . . . Known Exits Taken . | . . . . Unknown Exits Taken 3 | 1 1 1 . Scrap Searched . | . . . . Spaces Dug . | . . . . Terrain Destroyed 5 | . . 5 . Melee . | . . . . Projectile . | . . . . AOE 5 | . . 5 . Terrain Rammed . | . . . . Walls Destroyed . | . . . . Machines Disabled . | . . . . Actions | -11 -10 -10 -9 --------- Run | Yrd Mat Min Mat Total 944 | 72 270 187 415 Wait 98 | . 34 3 61 Move 739 | 62 218 168 291 Hop . | . . . . Pick Up 11 | 4 4 1 2 Fast Attach 13 | 5 1 1 6 Attach 14 | 1 2 2 9 Detach 6 | . 2 2 2 Swap 4 | . 2 1 1 Drop 3 | . . . 3 Fire 27 | . 7 5 15 Melee 29 | . . 4 25 Ram . | . . . . Kick . | . . . . Crush . | . . . . Escape Stasis . | . . . . Rewire . | . . . . Trap . | . . . . Miscellaneous . | . . . . Route ------- -11/Scrapyard -10/Materials -10/Mines -9/Materials History --------- Turn | Location | Event 26 | -11/Scrapyard | Discovered new exit (range 16) 99 | -11/Scrapyard | Entered Materials 315 | -10/Materials | Build established: Mutant 445 | -10/Materials | Discovered new exit (range 13) 515 | -10/Materials | Entered Mines 523 | -10/Mines | YI-UF0 nonchalantly dropped a Grenade Launcher on the ground 585 | -10/Mines | Destroyed YI-UF0 611 | -10/Mines | Lost 3 parts (1p1n1w) 632 | -10/Mines | A weapon hastily lodged in a ceiling crevice suddenly fell to the ground 717 | -10/Mines | Core integrity fell below 50% 754 | -10/Mines | Discovered new exit (range 12) 757 | -10/Mines | Assembled infested the area 818 | -10/Mines | Entered Materials 818 | -9/Materials | Evolved 2 slots: Propulsion x1, Utility x1 1116 | -9/Materials | Core integrity fell below 50% 1134 | -9/Materials | Lost 6 parts (2p4n) 1304 | -9/Materials | Core integrity fell below 20% 1321 | -9/Materials | Destroyed by G-34 Mercenary with Small Laser Last Messages --------------- K-01 Serf collects debris. Acquired 96 matter. K-01 Serf collects debris. M-13 Machinist repairs A-02 Transporter. G-34 Mercenary Aluminum Leg severed. G-34 Mercenary destroyed. Acquired 42 matter. Lgt. Cannon destroyed. Y-45 Defender destroyed. K-01 Serf collects debris. Lgt. Ion Engine destroyed. G-47 Trooper Lgt. Nuclear Core severed. K-01 Serf collects debris. Acquired Lgt. Nuclear Core. Acquired Heat Sink. K-01 Serf collects debris. K-01 Serf cleans the Nuclear Reactor. Lgt. Nuclear Core destroyed. Aluminum Leg destroyed. G-47 Trooper Aluminum Leg severed. Map ----- +----------------------------------------------------+ | | | | | | | | | | | | | | | | | | | ?????????????????????????????????????????????????? | | ?????????????????????????????????????????????????? | | ?????????????????????????????????????????????????? | | ?????????????????????????????????????????????????? | | ?????????????????????????????????????????????????? | | ?????????????????????????????????????????????????? | | ?????????????????????????????????????????????????? | | ?????????????????????????????????????????????????? | | ?????????????????????????????????????????????????? | | ?????????????????????????????????????????????????? | | ?????????????????????########????????????????????? | | ?????????????????????# #????????????????????? | | ?????????????????????# """ #????????????????????? | | ?????????????????????# """ #????????????????????? | | ?????????????????????# """ #?????????????#??????? | | ?????????????????????# = #??????????? ##?????? | | ?????????????????????# =k@[g#????##+### #?????? | | ?????????????????????####g######## #?????? | | ????????????????????????#%= #?????? | | ????????????????????????#+######## #### #?????? | | ???????????????????????? ??????# #?????????????? | | ???????????????????????? ??????# #?????????????? | | ??????????????????????? ?????# #?????????????? | | ???????? ????????????? ?????# #?????????????? | | ???????? #################### #?????????????? | | ??????? % #?????????????? | | ??????????# %= ==% #?????????????? | | ??????????# ! #?????????????? | | ???????????????##+######+####### #?????????????? | | ????????????????????# ## #?????????????? | | ????????????????????# """ ## #?????????????? | | ????????????????????#"" """ ## +?????????????? | | ????????????????????#"" """ ## #?????????????? | | ????????????????????#"T """ ## #?????????????? | | ????????????????????#"" """ ## #?????????????? | | ????????????????????#"" ## #?????????????? | | ????????????????????# ## #?????????????? | | ????????????????????###+######## #?????????????? | | ?????????????????????# # #?????????????? | | ?????????????????????# # #???########??? | | ?????????????????????# # #???# #??? | +----------------------------------------------------+ Best States ------------- Heat Dissipation 38 Energy Generation 14 Energy Capacity 250 Matter Stores 300 Matter Capacity 400 Sight Range 18 Terrain Scan Density 10 Evasion (%) 63 Recoil Reduction 2 Item Schematics ----------------- None Robot Schematics ------------------ None Fabricated ------------ Nothing Repaired ---------- Nothing Studied --------- None Alien Tech Used ----------------- None Achievements -------------- None Challenges ------------ None Game ------ Seed CoolingTerrorSubcomponent Manual? 0 Play Time 00:12:13 Cumulative 5.9 hours Start 2026.01.31 @ 22:04:16 End 2026.01.31 @ 22:15:00 Sessions 1 Manual Loads 0 Difficulty Rogue Special Mode None Game No. 16 Rogue 16 Adventurer 0 Explorer 0 Win Type - Total 0 Types 0/0/0/0/0/0/0/0/0/0 Lore% 2 Gallery% 10 Achievement% 11 Wizard Run 0 Options --------- Layout 1 ASCII 0 Keyboard 0 Movement Vi Keybinds 0 Fullscreen 1 Font 24/Smallcaps Map View 50x35 Zoom Use 0% Tactical HUD 0 Map Filters NONE Filters NONE Steam 1 RUN: d3b74d88-803f-41cd-a199-d7005f4257d5